bitfinex/quotes_SOLUSD_20250924
["timestamp","ask_amount","ask_price","bid_price","bid_amount"]
[1758713619188,5.43831075,212.51,212.43,26.2]
[1758713619389,5.43831075,212.49,212.43,26.2]
[1758713619590,0.72,212.48,212.43,26.2]
[1758713619774,5.43831075,212.47,212.43,26.2]
[1758713620093,5.43831075,212.58,212.43,26.2]
[1758713620094,13.73775558,212.63,212.49,28.27]
[1758713620267,13.73775558,212.63,212.62,13.59559401]
[1758713620463,13.73775558,212.63,212.62,19.88606633]
[1758713620464,13.01775558,212.63,212.62,19.88606633]
[1758713620676,0.72,212.74,212.65,26.0]
[1758713620896,0.72,212.74,212.69,26.0]
[1758713621075,0.1,212.78,212.69,26.0]
[1758713621076,0.72,212.73,212.69,26.0]
[1758713621391,5.43831075,212.77,212.71,26.0]
[1758713621578,0.72,212.72,212.71,26.0]
[1758713621987,0.72,212.76,212.7,26.0]
[1758713622487,0.1,212.78,212.74,5.43831075]
[1758713624118,0.82,212.78,212.72,5.43831075]
[1758713624594,0.82,212.78,212.73,13.59559401]
[1758713624981,0.1,212.78,212.73,13.59559401]
[1758713627200,0.72,212.77,212.69,26.0]
[1758713627372,0.72,212.77,212.73,26.0]
[1758713629110,5.53831075,212.78,212.73,26.0]
[1758713629601,6.25831075,212.78,212.73,26.0]
[1758713630692,6.25831075,212.78,212.7,13.59559401]
[1758713630693,6.25831075,212.78,212.71,13.59559401]
[1758713631002,6.25831075,212.78,212.71,39.59559401]
[1758713631178,6.25831075,212.78,212.72,3.41936786]
[1758713631377,6.25831075,212.78,212.71,39.59559401]
[1758713632082,6.25831075,212.78,212.72,3.41871204]
[1758713632294,6.25831075,212.78,212.71,39.59559401]
[1758713632695,5.53831075,212.78,212.71,39.59559401]
[1758713633102,5.53831075,212.78,212.72,3.41808163]
[1758713633306,5.53831075,212.78,212.71,39.59559401]
[1758713633680,5.53831075,212.78,212.72,3.4173866]
[1758713635318,0.1,212.78,212.73,13.59559401]
[1758713635696,0.1,212.78,212.72,13.59559401]
[1758713636008,0.1,212.78,212.73,3.41540993]
[1758713636795,0.1,212.78,212.76,13.59559401]
[1758713638391,5.53831075,212.78,212.76,13.59559401]
[1758713638793,6.24831075,212.78,212.73,26.0]
[1758713639005,0.81,212.78,212.77,26.0]
[1758713639300,0.1,212.78,212.77,26.0]
[1758713640083,5.53831075,212.78,212.75,13.59559401]
[1758713641614,0.1,212.78,212.75,13.59559401]
[1758713642399,5.43831075,212.77,212.75,13.59559401]
[1758713642709,6.10831075,212.77,212.75,13.59559401]
[1758713643310,5.43831075,212.77,212.66,13.86434345]
[1758713643513,5.43831075,212.73,212.72,39.59559401]
[1758713643716,5.43831075,212.73,212.72,13.59559401]
[1758713644500,5.43831075,212.76,212.73,13.59559401]
[1758713644894,0.1,212.78,212.75,13.59559401]
[1758713645090,5.53831075,212.78,212.75,13.59559401]
[1758713647396,0.1,212.78,212.75,13.59559401]
[1758713647596,0.1,212.78,212.77,26.0]
[1758713651997,0.77,212.78,212.74,26.0]
[1758713652199,0.1,212.78,212.77,39.59559401]
[1758713652699,0.77,212.78,212.77,39.59559401]
[1758713653522,0.1,212.78,212.77,43.00996168]
[1758713654204,0.1,212.78,212.77,39.59559401]
[1758713654526,0.77,212.78,212.77,43.01085704]
[1758713655035,0.1,212.78,212.77,43.01085704]
[1758713655526,0.77,212.78,212.77,43.01085704]
[1758713656224,0.77,212.78,212.77,3.41526303]
[1758713656397,0.77,212.78,212.72,39.59559401]
[1758713656601,3.54005831,212.76,212.73,3.41732593]
[1758713656817,3.54005831,212.76,212.75,13.59559401]
[1758713657129,4.31005831,212.78,212.77,26.0]
[1758713657331,4.31005831,212.78,212.77,29.41732593]
[1758713660321,0.77,212.78,212.77,29.41732593]
[1758713660718,0.1,212.78,212.77,29.41732593]
[1758713661811,0.1,212.78,212.77,43.01291994]
[1758713663032,0.81,212.78,212.77,43.01291994]
[1758713666029,0.81,212.78,212.77,17.01291994]
[1758713666731,0.81,212.78,212.77,13.59559401]
[1758713666732,0.1,212.78,212.77,13.59559401]
[1758713667118,0.81,212.78,212.77,13.59559401]
[1758713668132,0.1,212.78,212.77,13.59559401]
[1758713668518,0.81,212.78,212.7,0.14216157]
[1758713670328,4.35005831,212.78,212.7,0.14216157]
[1758713670528,2.2824853,212.78,212.7,0.14216157]
[1758713670906,2.2824853,212.78,212.69,13.59559401]
[1758713671106,1.4724853,212.76,212.67,13.59559401]
[1758713671311,0.71,212.75,212.67,13.59559401]
[1758713671526,0.71,212.74,212.67,13.59559401]
[1758713671726,0.71,212.74,212.68,0.14216157]
[1758713671928,0.71,212.73,212.68,0.14216157]
[1758713672337,0.71,212.72,212.68,0.14216157]
[1758713672538,0.71,212.73,212.68,0.14216157]
[1758713672836,0.71,212.71,212.68,0.14216157]
[1758713674618,0.1,212.78,212.68,0.14216157]
[1758713674938,0.71,212.73,212.68,0.14216157]
[1758713675141,0.71,212.72,212.68,0.14216157]
[1758713675327,1.4724853,212.75,212.68,0.14216157]
[1758713675528,0.71,212.73,212.68,0.14216157]
[1758713677020,1.4724853,212.77,212.68,0.14216157]
[1758713677228,0.71,212.72,212.68,0.14216157]
[1758713677734,0.71,212.72,212.69,3.46209487]
[1758713677934,0.71,212.72,212.71,13.59559401]
[1758713678138,0.71,212.72,212.71,17.05768888]
[1758713679740,0.71,212.74,212.71,17.05768888]
[1758713679944,0.71,212.73,212.68,0.14216157]
[1758713680122,0.71,212.73,212.69,3.46147307]
[1758713680318,0.71,212.73,212.71,13.59559401]
[1758713680543,0.71,212.73,212.72,17.05706708]
[1758713682344,0.71,212.73,212.72,1.30147307]
[1758713682529,2.1824853,212.73,212.65,0.67]
[1758713682843,1.4724853,212.71,212.65,0.67]
[1758713683051,1.4724853,212.71,212.66,13.59559401]
[1758713683228,1.4724853,212.71,212.66,14.26559401]
[1758713683644,2.1824853,212.71,212.66,14.26559401]
[1758713685326,1.4724853,212.69,212.65,13.80674657]
[1758713685531,2.1824853,212.69,212.63,13.59559401]
[1758713685724,2.1824853,212.69,212.63,0.67]
[1758713686228,2.1824853,212.69,212.64,13.59559401]
[1758713686434,2.1824853,212.69,212.64,14.26559401]
[1758713687338,1.4724853,212.69,212.64,14.26559401]
[1758713687537,1.4724853,212.69,212.64,13.59559401]
[1758713687736,0.71,212.68,212.64,13.59559401]
[1758713687933,2.1824853,212.67,212.59,13.59559401]
[1758713688132,1.4724853,212.65,212.59,14.26559401]
[1758713688744,1.4724853,212.65,212.55,1.4724853]
[1758713688745,1.4724853,212.63,212.57,0.67]
[1758713689049,1.4724853,212.63,212.59,13.59559401]
[1758713689231,1.4724853,212.59,212.54,3.80267268]
[1758713689429,1.4724853,212.61,212.55,0.67]
[1758713689644,1.4724853,212.61,212.56,13.59559401]
[1758713689844,1.4724853,212.61,212.56,14.26559401]
[1758713691672,1.4724853,212.59,212.56,0.67]
[1758713692032,1.4724853,212.59,212.55,13.59559401]
[1758713692240,1.4724853,212.59,212.55,0.67]
[1758713692442,0.7,212.59,212.53,0.67]
[1758713692647,1.4724853,212.57,212.54,13.59559401]
[1758713692841,1.4724853,212.57,212.55,0.67]
[1758713693731,1.4724853,212.59,212.57,13.59559401]
[1758713694169,1.4724853,212.59,212.48,13.73775558]
[1758713694337,1.4724853,212.59,212.56,13.59559401]
[1758713694656,1.4724853,212.59,212.57,0.67]
[1758713695154,1.4724853,212.61,212.57,0.67]
[1758713695964,1.4724853,212.61,212.55,0.67]
[1758713696340,1.4724853,212.59,212.54,13.59559401]
[1758713696635,2.1724853,212.59,212.54,13.59559401]
[1758713696835,2.1724853,212.59,212.52,0.67]
[1758713696836,0.7,212.58,212.52,0.67]
[1758713697465,1.4724853,212.59,212.52,0.67]
[1758713698370,2.1724853,212.59,212.52,0.67]
[1758713705949,1.4724853,212.57,212.49,28.75675249]
[1758713706176,0.68,212.56,212.49,28.75675249]
[1758713706850,26.0,212.64,212.43,0.2]
[1758713706851,1.4724853,212.53,212.43,0.2]
[1758713707171,0.68,212.52,212.48,26.0]
[1758713707473,2.1524853,212.51,212.45,14.29559401]
[1758713708055,1.4724853,212.51,212.46,26.7]
[1758713708550,1.4724853,212.51,212.46,0.7]
[1758713709062,1.4724853,212.51,212.46,26.7]
[1758713709448,1.4724853,212.51,212.43,13.79559401]
[1758713709649,1.4724853,212.49,212.43,13.79559401]
[1758713709871,1.4724853,212.47,212.43,0.2]
[1758713710083,0.68,212.46,212.43,0.2]
[1758713710576,26.0,212.52,212.43,0.2]
[1758713710577,2.1524853,212.45,212.43,0.2]
[1758713710949,0.68,212.5,212.43,0.9]
[1758713711175,0.68,212.49,212.43,0.9]
[1758713711358,1.4724853,212.48,212.43,0.9]
[1758713711559,2.1524853,212.48,212.43,0.9]
[1758713711769,2.1524853,212.48,212.43,0.2]
[1758713711770,0.68,212.47,212.43,0.2]
[1758713712976,26.0,212.52,212.44,0.7]
[1758713712977,0.68,212.5,212.44,0.7]
[1758713713279,1.4724853,212.48,212.44,0.7]
[1758713713877,2.1524853,212.48,212.43,0.2]
[1758713714072,1.4724853,212.44,212.43,0.2]
[1758713714979,2.1524853,212.44,212.43,0.2]
[1758713716788,2.98890108,212.44,212.43,0.2]
[1758713717197,0.68,212.44,212.43,0.2]
[1758713717374,2.98890108,212.44,212.43,0.2]
[1758713717680,3.13106265,212.44,212.43,0.2]
[1758713718573,29.13106265,212.44,212.43,0.2]
[1758713718779,3.13106265,212.44,212.43,0.2]
[1758713720979,5.43996373,212.44,212.43,0.2]
[1758713723891,5.44996373,212.42,212.41,0.2]
[1758713724277,3.7778546,212.47,212.41,0.2]
[1758713724278,0.69,212.45,212.41,0.2]
[1758713724473,0.69,212.44,212.41,0.2]
[1758713724679,2.30890108,212.42,212.41,0.2]
[1758713725071,2.30890108,212.42,212.41,0.86]
[1758713725472,2.30890108,212.42,212.41,0.2]
[1758713726169,2.30890108,212.42,212.41,0.86]
[1758713726491,2.30890108,212.45,212.41,0.86]
[1758713726666,2.30890108,212.45,212.42,0.66]
[1758713726862,2.30890108,212.45,212.43,0.66]
[1758713727990,2.30890108,212.48,212.44,0.66]
[1758713728187,2.30890108,212.48,212.41,0.2]
[1758713728374,2.30890108,212.48,212.45,0.66]
[1758713728984,2.30890108,212.48,212.43,0.66]
[1758713729390,2.30890108,212.46,212.43,0.66]
[1758713729577,2.30890108,212.46,212.41,0.86]
[1758713729578,2.30890108,212.44,212.41,0.86]
[1758713729781,2.30890108,212.42,212.41,0.2]
[1758713730390,2.30890108,212.43,212.41,0.2]
[1758713731596,2.30890108,212.43,212.41,0.86]
[1758713732575,2.30890108,212.45,212.41,0.86]
[1758713733393,0.69,212.47,212.41,0.2]
[1758713733696,0.14216157,212.48,212.42,0.66]
[1758713733697,2.30890108,212.48,212.42,0.66]
[1758713734200,2.30890108,212.46,212.41,0.2]
[1758713734372,2.99890108,212.46,212.41,0.86]
[1758713734573,2.99890108,212.46,212.41,284.808577]
[1758713734987,2.30890108,212.46,212.41,284.808577]
[1758713735274,2.30890108,212.44,212.41,284.808577]
[1758713735496,2.30890108,212.44,212.42,0.66]
[1758713736980,2.30890108,212.44,212.43,0.66]
[1758713737188,2.30890108,212.44,212.41,284.148577]
[1758713737898,2.30890108,212.44,212.42,0.66]
[1758713739400,2.30890108,212.44,212.41,284.148577]
[1758713739699,2.30890108,212.42,212.41,284.808577]
[1758713740891,2.30890108,212.42,212.41,284.148577]
[1758713741693,2.99890108,212.42,212.41,284.148577]
[1758713742096,2.30890108,212.42,212.41,284.148577]
[1758713742403,2.99890108,212.42,212.41,284.148577]
[1758713743313,2.30890108,212.42,212.41,284.148577]
[1758713745899,2.99890108,212.42,212.41,284.148577]
[1758713746299,2.30890108,212.42,212.41,284.148577]
[1758713750804,5.43996373,212.42,212.41,284.148577]
[1758713754621,5.43996373,212.42,212.41,284.868577]
[1758713754622,2.30890108,212.42,212.41,284.868577]
[1758713756006,14.15528346,212.5,212.41,284.868577]
[1758713756206,0.68,212.53,212.42,0.72]
[1758713756421,2.30890108,212.45,212.42,0.72]
[1758713756718,2.30890108,212.49,212.43,13.59559401]
[1758713756934,2.30890108,212.49,212.44,0.72]
[1758713758097,0.68,212.56,212.44,0.72]
[1758713758296,14.14860754,212.6,212.45,13.59559401]
[1758713758605,2.30890108,212.56,212.47,13.59559401]
[1758713758820,2.30890108,212.5,212.48,0.72]
[1758713759323,2.30890108,212.54,212.48,0.72]
[1758713760122,2.30890108,212.52,212.48,0.72]
[1758713760829,2.30890108,212.52,212.49,13.59559401]
[1758713761128,2.30890108,212.54,212.5,0.66]
[1758713761335,14.14460501,212.66,212.51,13.59559401]
[1758713761626,2.30890108,212.59,212.53,13.59559401]
[1758713762001,2.30890108,212.59,212.54,0.66]
[1758713762199,2.30890108,212.59,212.55,13.59559401]
[1758713762401,2.30890108,212.61,212.56,0.66]
[1758713762635,0.1,212.67,212.56,0.66]
[1758713762636,0.1,212.67,212.57,13.59559401]
[1758713762809,0.1,212.67,212.59,13.59559401]
[1758713763121,2.30890108,212.65,212.59,13.59559401]
[1758713763333,2.30890108,212.65,212.6,0.66]
[1758713763910,2.40890108,212.67,212.6,0.66]
[1758713764430,2.30890108,212.63,212.6,0.66]
[1758713764610,2.30890108,212.61,212.53,0.14216157]
[1758713764812,2.30890108,212.61,212.55,13.59559401]
[1758713765120,0.79,212.67,212.55,13.59559401]
[1758713765121,2.30890108,212.59,212.56,0.66]
[1758713765319,2.30890108,212.59,212.57,0.66]
[1758713765705,2.30890108,212.59,212.58,0.66]
[1758713770033,2.30890108,212.59,212.55,13.59559401]
[1758713770228,2.30890108,212.59,212.56,0.66]
[1758713770431,0.69,212.64,212.54,26.0]
[1758713770636,2.30890108,212.57,212.55,0.66]
[1758713771134,2.30890108,212.57,212.54,26.0]
[1758713771135,2.30890108,212.57,212.56,0.66]
[1758713771815,2.30890108,212.59,212.56,0.66]
[1758713772927,2.30890108,212.59,212.57,0.66]
[1758713774731,2.30890108,212.59,212.54,0.66]
[1758713774930,2.30890108,212.56,212.54,0.66]
[1758713775526,2.30890108,212.56,212.55,0.66]
[1758713776127,2.30890108,212.56,212.53,0.66]
[1758713776333,0.69,212.61,212.54,0.66]
[1758713776534,2.30890108,212.56,212.54,0.66]
[1758713776744,2.30890108,212.58,212.54,0.66]
[1758713778435,2.30890108,212.6,212.54,0.66]
[1758713778624,1.47494605,212.6,212.54,0.66]
[1758713780222,1.47494605,212.58,212.54,0.66]
[1758713780619,1.47494605,212.58,212.5,28.01648911]
[1758713780838,1.47494605,212.58,212.52,13.59559401]
[1758713781239,1.47494605,212.54,212.5,0.7]
[1758713781447,1.47494605,212.54,212.51,0.7]
[1758713782142,1.47494605,212.52,212.48,0.7]
[1758713783020,1.47494605,212.52,212.44,0.14216157]
[1758713783219,1.47494605,212.52,212.45,0.7]
[1758713784646,0.7,212.56,212.45,0.7]
[1758713784843,1.47494605,212.57,212.46,15.21270163]
[1758713785047,1.47494605,212.57,212.48,13.59559401]
[1758713785534,1.47494605,212.57,212.46,1.61710762]
[1758713785742,1.47494605,212.57,212.52,13.59559401]
[1758713785946,1.47494605,212.59,212.53,0.7]
[1758713787242,0.1,212.78,212.58,1.47494605]
[1758713787436,0.1,212.78,212.67,1.47494605]
[1758713787630,0.1,212.78,212.72,13.59559401]
[1758713787951,2.17494605,212.77,212.68,0.7]
[1758713788150,1.47494605,212.73,212.68,0.7]
[1758713788349,0.1,212.78,212.67,13.59559401]
[1758713788350,1.47494605,212.71,212.67,13.59559401]
[1758713788522,3.54184432,212.71,212.67,13.59559401]
[1758713788925,3.54184432,212.71,212.67,14.29559401]
[1758713789138,4.24184432,212.71,212.67,13.59559401]
[1758713789334,4.24184432,212.71,212.65,13.59559401]
[1758713790149,3.54184432,212.69,212.64,0.7]
[1758713790337,3.54184432,212.69,212.65,13.59559401]
[1758713790856,4.24184432,212.69,212.65,13.59559401]
[1758713791356,0.7,212.68,212.63,13.59559401]
[1758713791552,3.54184432,212.67,212.62,0.7]
[1758713791751,3.54184432,212.67,212.6,13.59559401]
[1758713791752,0.7,212.66,212.6,14.29559401]
[1758713791963,3.54184432,212.67,212.6,14.29559401]
[1758713792254,3.54184432,212.65,212.6,14.29559401]
[1758713792651,3.54184432,212.65,212.56,13.73775558]
[1758713792952,0.1,212.78,212.62,3.54184432]
[1758713793158,0.1,212.78,212.69,13.59559401]
[1758713793367,0.1,212.78,212.7,0.7]
[1758713793740,0.1,212.78,212.71,13.59559401]
[1758713794041,0.8,212.78,212.71,13.59559401]
[1758713794238,4.24184432,212.77,212.67,3.68400589]
[1758713794451,0.7,212.76,212.67,13.59559401]
[1758713794650,0.7,212.76,212.69,13.59559401]
[1758713794852,0.7,212.76,212.7,4.70145745]
[1758713795044,3.54184432,212.73,212.68,5.40169258]
[1758713795438,3.54184432,212.71,212.68,4.70169258]
[1758713795765,4.24184432,212.71,212.68,4.70169258]
[1758713796133,0.7,212.7,212.68,4.70169258]
[1758713796332,3.54184432,212.69,212.65,4.70256289]
[1758713796733,3.54184432,212.68,212.65,4.70256289]
[1758713797356,3.54184432,212.68,212.65,16.45897013]
[1758713797654,4.24184432,212.7,212.65,17.15897013]
[1758713798360,3.54184432,212.72,212.66,14.29559401]
[1758713798663,3.54184432,212.72,212.67,0.7]
[1758713798848,3.54184432,212.67,212.66,18.29793577]
[1758713799659,3.54184432,212.67,212.66,4.70234176]
[1758713800038,26.0,212.75,212.66,17.15819617]
[1758713800359,3.54184432,212.68,212.67,0.7]
[1758713800866,3.54184432,212.68,212.67,5.40212065]
[1758713804162,3.54184432,212.68,212.67,22.4305003]
[1758713805962,3.5416211,212.69,212.68,13.59559401]
[1758713806154,3.5416211,212.69,212.68,21.73027921]
[1758713806847,3.5416211,212.69,212.68,4.70189956]
[1758713807247,4.2416211,212.69,212.68,4.70189956]
[1758713807466,4.2416211,212.69,212.65,4.70256289]
[1758713807679,3.5416211,212.67,212.65,4.70256289]
[1758713808050,4.2416211,212.67,212.63,11.75740559]
[1758713808255,3.5416211,212.64,212.63,25.3529996]
[1758713808451,3.5416211,212.64,212.63,28.78784212]
[1758713808866,4.2416211,212.67,212.63,28.78784212]
[1758713809174,26.7,212.72,212.65,13.59559401]
[1758713809468,26.7,212.72,212.66,0.7]
[1758713809469,3.5416211,212.69,212.66,0.7]
[1758713810358,3.5416211,212.71,212.67,4.70212065]
[1758713810572,3.5416211,212.71,212.68,0.7]
[1758713811062,4.2316211,212.71,212.67,16.45742229]
[1758713812050,4.2316211,212.71,212.67,11.75530164]
[1758713812249,4.2316211,212.71,212.67,12.45530164]
[1758713812460,4.2316211,212.71,212.67,11.75530164]
[1758713812650,3.5416211,212.69,212.66,4.70234176]
[1758713812848,26.0,212.73,212.66,4.70234176]
[1758713812849,3.5416211,212.67,212.66,4.70234176]
[1758713814369,3.5416211,212.67,212.65,4.70256289]
[1758713814672,3.5416211,212.68,212.65,16.45897013]
[1758713815056,3.5416211,212.68,212.65,4.70256289]
[1758713815377,4.2316211,212.68,212.65,4.70256289]
[1758713816479,0.69,212.67,212.64,11.75684031]
[1758713816969,3.5416211,212.66,212.63,4.70300522]
[1758713817153,4.2316211,212.66,212.63,4.70300522]
[1758713817357,3.5416211,212.64,212.63,4.70300522]
[1758713819173,0.69,212.65,212.61,16.46161651]
[1758713819567,0.69,212.65,212.61,17.16161651]
[1758713820259,0.66,212.67,212.61,17.16161651]
[1758713820874,4.20329556,212.67,212.61,17.16161651]
[1758713821057,0.66,212.66,212.61,16.46161651]
[1758713821454,0.66,212.65,212.61,16.46161651]
[1758713821684,4.20329556,212.67,212.61,17.16161651]
[1758713826082,3.54329556,212.65,212.6,4.70366886]
[1758713826275,0.66,212.64,212.6,4.70366886]
[1758713826479,4.20329556,212.63,212.6,4.70366886]
[1758713826986,0.66,212.62,212.56,0.7]
[1758713827286,0.66,212.62,212.57,13.59559401]
[1758713827461,4.20329556,212.61,212.57,5.40433269]
[1758713827660,4.20329556,212.61,212.56,16.46593902]
[1758713827886,4.20329556,212.61,212.56,17.16593902]
[1758713829298,3.54329556,212.61,212.56,17.16593902]
[1758713829571,4.20329556,212.61,212.56,17.16593902]
[1758713829890,0.66,212.6,212.56,16.46593902]
[1758713830566,0.66,212.6,212.56,17.16593902]
[1758713830990,2.13494211,212.59,212.54,4.70487367]
[1758713831174,2.13494211,212.59,212.5,0.14216157]
[1758713831175,1.47494211,212.57,212.51,4.70566091]
[1758713831369,2.13494211,212.57,212.52,3.45740365]
[1758713831571,0.66,212.56,212.53,3.45740365]
[1758713831770,0.66,212.56,212.51,16.46981318]
[1758713831981,1.47494211,212.57,212.52,0.7]
[1758713832185,1.47494211,212.59,212.53,13.59559401]
[1758713832571,3.54591985,212.59,212.53,13.59559401]
[1758713833187,3.54591985,212.59,212.54,16.46748846]
[1758713834315,26.0,212.61,212.54,16.46748846]
[1758713834473,3.54591985,212.64,212.55,13.59559401]
[1758713834677,3.54591985,212.64,212.55,17.14151386]
[1758713835098,0.66,212.62,212.56,16.46593902]
[1758713835274,0.66,212.62,212.57,13.59559401]
[1758713836788,3.54591985,212.62,212.56,16.46593902]
[1758713836973,0.66,212.59,212.56,4.704554]
[1758713837375,0.66,212.59,212.55,16.46661794]
[1758713837985,0.66,212.59,212.55,4.70477534]
[1758713838185,3.54591985,212.6,212.55,4.70477534]
[1758713838186,0.66,212.57,212.55,4.70477534]
[1758713838587,0.66,212.56,212.53,4.70499875]
[1758713839380,0.66,212.56,212.52,4.70543948]
[1758713839993,0.66,212.56,212.5,4.70568605]
[1758713840475,4.20591985,212.56,212.5,4.70568605]
[1758713840689,6.09460585,212.56,212.5,4.70568605]
[1758713840893,6.09460585,212.56,212.5,16.47039193]
[1758713841191,4.70463098,212.56,212.5,4.70568605]
[1758713841398,5.43460585,212.54,212.48,18.30171083]
[1758713841583,6.15460585,212.54,212.48,18.30171083]
[1758713842205,6.15460585,212.54,212.48,30.72752408]
[1758713842505,6.15460585,212.54,212.48,18.96171083]
[1758713842712,0.72,212.55,212.48,17.13193007]
[1758713843208,6.15460585,212.54,212.48,17.13193007]
[1758713845407,0.72,212.54,212.48,17.13193007]
[1758713846713,0.72,212.53,212.45,4.70698987]
[1758713846900,0.72,212.53,212.46,0.66]
[1758713848295,0.72,212.53,212.46,6.09460585]
[1758713848491,5.43460585,212.54,212.47,17.13291381]
[1758713848685,0.14216157,212.58,212.47,16.47291381]
[1758713848894,26.0,212.57,212.48,0.66]
[1758713849080,61.70299608,212.66,212.48,0.66]
[1758713849081,0.72,212.61,212.52,13.59559401]
[1758713849277,6.15460585,212.61,212.53,0.66]
[1758713849694,26.0,212.6,212.53,6.09460585]
[1758713849890,26.0,212.6,212.52,13.59559401]
[1758713849891,26.72,212.6,212.54,0.66]
[1758713850208,5.43460585,212.59,212.49,6.09460585]
[1758713850389,0.72,212.58,212.5,0.66]
[1758713850582,0.72,212.58,212.51,4.70566091]
[1758713850903,5.43460585,212.56,212.5,0.66]
[1758713851087,6.15460585,212.56,212.49,4.70606379]
[1758713851295,0.72,212.55,212.49,4.70606379]
[1758713851496,5.43460585,212.54,212.49,4.70606379]
[1758713851698,0.72,212.53,212.49,4.70606379]
[1758713852109,5.43460585,212.54,212.46,30.06928317]
[1758713852412,5.43460585,212.54,212.47,0.66]
[1758713852611,2.30602124,212.54,212.47,0.66]
[1758713853316,2.30602124,212.52,212.47,0.66]
[1758713853607,3.02602124,212.52,212.47,0.66]
[1758713854901,3.02602124,212.52,212.47,5.36639388]
[1758713855309,0.72,212.51,212.47,4.70639388]
[1758713855690,0.72,212.51,212.45,5.36678168]
[1758713856215,2.30602124,212.5,212.45,5.36678168]
[1758713856409,2.30602124,212.5,212.46,0.66]
[1758713856715,2.30602124,212.5,212.47,0.66]
[1758713857308,3.02602124,212.5,212.44,5.36704158]
[1758713857694,3.02602124,212.5,212.45,0.66]
[1758713857894,0.72,212.49,212.44,4.70704158]
[1758713858095,2.30602124,212.48,212.44,5.36704158]
[1758713859310,2.30602124,212.48,212.44,4.70704158]
[1758713859505,2.30602124,212.48,212.45,0.66]
[1758713860506,0.72,212.49,212.45,0.66]
[1758713860707,2.30602124,212.46,212.42,4.70751237]
[1758713860907,2.30602124,212.46,212.42,5.36751237]
[1758713861214,0.72,212.53,212.44,13.59559401]
[1758713861394,2.30602124,212.48,212.45,0.66]
[1758713861599,2.30602124,212.48,212.46,0.66]
[1758713861914,2.30602124,212.48,212.44,0.66]
[1758713862506,2.30602124,212.46,212.42,16.47664898]
[1758713862706,2.30602124,212.46,212.43,0.66]
[1758713863230,2.30602124,212.46,212.44,5.36721144]
[1758713863595,2.30602124,212.48,212.44,5.36721144]
[1758713864009,2.30602124,212.48,212.45,0.66]
[1758713865214,2.30602124,212.48,212.46,4.70676833]
[1758713865409,0.72,212.5,212.46,5.36676833]
[1758713865410,2.30602124,212.5,212.46,5.36676833]
[1758713865718,2.30602124,212.48,212.46,5.36676833]
[1758713865912,2.30602124,212.48,212.46,4.70676833]
[1758713866511,2.30602124,212.48,212.44,5.36703142]
[1758713866702,2.30602124,212.48,212.44,4.70703142]
[1758713866898,2.30602124,212.48,212.45,0.66]
[1758713867295,2.30602124,212.48,212.44,4.70703142]
[1758713867500,0.72,212.47,212.44,4.70703142]
[1758713868009,2.30602124,212.48,212.44,4.70703142]
[1758713868212,0.72,212.47,212.44,4.70703142]
[1758713868800,2.30602124,212.48,212.44,4.70703142]
[1758713868801,3.02602124,212.48,212.44,4.70703142]
[1758713868997,3.02602124,212.48,212.44,5.36703142]
[1758713869427,2.30602124,212.48,212.42,4.70765464]
[1758713869723,2.30602124,212.46,212.41,288.85636939]
[1758713869900,5.4265468,212.47,212.41,284.148577]
[1758713869901,2.30602124,212.44,212.41,284.148577]
[1758713870101,3.02602124,212.44,212.41,284.148577]
[1758713870302,2.30602124,212.44,212.41,284.808577]
[1758713870517,2.30602124,212.44,212.41,288.8563969]
[1758713870923,2.30602124,212.44,212.41,289.5763969]
[1758713871128,2.30602124,212.48,212.43,4.70743303]
[1758713871325,28.30602124,212.48,212.44,0.72]
[1758713871832,2.96602124,212.48,212.44,0.72]
[1758713872021,2.30602124,212.48,212.43,4.70743303]
[1758713872201,0.66,212.47,212.43,4.70743303]
[1758713872704,0.66,212.46,212.43,4.70743303]
[1758713873023,0.66,212.46,212.41,284.148577]
[1758713873024,0.66,212.45,212.41,284.148577]
[1758713873328,2.30602124,212.46,212.41,284.148577]
[1758713873329,2.30602124,212.42,212.41,284.148577]